fUSD/lending_fUSD_20250108
["ID","MTS","AMOUNT","RATE_DAILY","PERIOD"]
[348096039,1736308255932,-433.3900625,0.00012299,4]
[348096040,1736308256165,-500.0,0.00010272,2]
[348096041,1736308256175,-338.99565998,0.00010818,2]
[348096042,1736308256187,-161.00434002,0.00010818,2]
[348096043,1736308256197,-174.44564091,0.000109,2]
[348096044,1736308256206,-500.0,0.00011092,2]
[348096045,1736308256215,-312.72,0.00011366,2]
[348096046,1736308256225,-1500.0,0.00012101,2]
[348096047,1736308256235,-30880.45521395,0.00012299,4]
[348096048,1736308256247,-622.15636844,0.00012299,4]
[348096049,1736308256266,-500.0,0.00010272,2]
[348096050,1736308256276,-4341.79727168,0.00012299,4]
[348096051,1736308256293,-2024.8765447,0.00012299,4]
[348096052,1736308256304,-1003.18768015,0.00012299,4]
[348096053,1736308256316,-634.3241349,0.00012299,4]
[348096054,1736308256329,-10548.29743027,0.00012299,4]
[348096055,1736308256339,-281.0,0.00012299,4]
[348096056,1736308256356,-597.96639261,0.00012299,4]
[348096057,1736308256367,-707.4064108,0.00012299,4]
[348096082,1736308536626,298.0,0.0002,120]
[348096083,1736308551599,298.0,0.00017,60]
[348096084,1736308656784,1520.42428696,0.00012122,24]
[348096085,1736308676506,2000.0,0.0002,120]
[348096086,1736308733060,1335.0,0.0002,120]
[348096241,1736309432010,-1083.36,8.219e-05,2]
[348096242,1736309432020,-250.0,9.496e-05,2]
[348096243,1736309432030,-217.82,9.496e-05,2]
[348096244,1736309432040,-4483.17,9.52e-05,2]
[348096245,1736309432049,-168.11,9.556e-05,2]
[348096246,1736309432059,-250.0,9.687e-05,2]
[348096247,1736309432069,-1000.0,9.705e-05,2]
[348096248,1736309432078,-273.5,9.981e-05,2]
[348096249,1736309432088,-172.17,0.0001,2]
[348096250,1736309432098,-1621.49786555,0.0001,2]
[348096251,1736309432108,-597.56,0.00010137,2]
[348096252,1736309432118,-493.64,0.00010154,2]
[348096253,1736309432127,-152.94,0.00010164,2]
[348096254,1736309432137,-497.24,0.00010164,2]
[348096255,1736309432147,-498.73,0.00010164,2]
[348096256,1736309432156,-150.25,0.00010164,2]
[348096257,1736309432166,-509.81,0.00010164,2]
[348096258,1736309432175,-506.7,0.00010164,2]
[348096259,1736309432185,-151.62,0.00010164,2]
[348096260,1736309432195,-496.14,0.00010164,2]
[348096261,1736309432204,-503.64,0.00010164,2]
[348096262,1736309432213,-152.11,0.00010164,2]
[348096263,1736309432223,-150.0,0.00010171,2]
[348096264,1736309432232,-150.25,0.00010172,2]
[348096265,1736309432242,-151.93,0.00010172,2]
[348096266,1736309432252,-497.12,0.00010172,2]
[348096267,1736309432262,-495.7,0.00010172,2]
[348096268,1736309432272,-150.34,0.00010172,2]
[348096269,1736309432281,-503.78,0.00010172,2]
[348096270,1736309432290,-152.02,0.00010172,2]
[348096271,1736309432299,-507.0,0.00010172,2]
[348096272,1736309432308,-507.69,0.00010172,2]
[348096273,1736309432318,-152.06,0.00010172,2]
[348096274,1736309432328,-503.8,0.00010172,2]
[348096275,1736309432337,-507.81,0.00010189,2]
[348096276,1736309432346,-504.18,0.00010204,2]
[348096277,1736309432356,-499.88,0.00010222,2]
[348096278,1736309432365,-467.98,0.00010271,2]
[348096279,1736309432375,-500.92706138,0.00010272,2]
[348096280,1736309432384,-500.0,0.00010272,2]
[348096281,1736309432393,-500.0,0.00010272,2]
[348096282,1736309432403,-500.0,0.00010272,2]
[348096283,1736309432412,-500.0,0.00010272,2]
[348096284,1736309432422,-500.0,0.00010272,2]
[348096285,1736309432431,-502.73152832,0.00010272,2]
[348096286,1736309432440,-500.0,0.00010272,2]
[348096287,1736309432450,-500.0,0.00010272,2]
[348096288,1736309432459,-500.0,0.00010272,2]
[348096289,1736309432469,-500.0,0.00010272,2]
[348096290,1736309432480,-500.0,0.00010272,2]
[348096291,1736309432491,-594.36,0.00010272,2]
[348096293,1736309432502,-553.30221765,0.00010272,2]
[348096295,1736309432512,-500.0,0.00010272,2]
[348096297,1736309432522,-545.23,0.00010272,2]
[348096299,1736309432531,-500.0,0.00010272,2]
[348096301,1736309432540,-500.0,0.00010272,2]
[348096303,1736309432550,-500.0,0.00010272,2]
[348096305,1736309432559,-500.0,0.00010272,2]
[348096307,1736309432568,-500.0,0.00010272,2]
[348096309,1736309432578,-500.0,0.00010272,2]
[348096310,1736309432588,-500.0,0.00010272,2]
[348096311,1736309432597,-500.0,0.00010272,2]
[348096313,1736309432606,-500.0,0.00010272,2]
[348096314,1736309432615,-500.0,0.00010272,2]
[348096315,1736309432625,-793.5,0.00010272,2]
[348096316,1736309432634,-500.0,0.00010272,2]
[348096317,1736309432644,-500.0,0.00010272,2]
[348096318,1736309432653,-500.0,0.00010272,2]
[348096319,1736309432662,-500.0,0.00010272,2]
[348096320,1736309432671,-500.0,0.00010272,2]
[348096321,1736309432681,-500.0,0.00010272,2]
[348096322,1736309432691,-500.0,0.00010272,2]
[348096323,1736309432700,-500.0,0.00010272,2]
[348096324,1736309432710,-1099.72,0.00010272,2]
[348096325,1736309432720,-500.0,0.00010272,2]
[348096326,1736309432731,-500.0,0.00010272,2]
[348096327,1736309432740,-950.71,0.00010272,2]
[348096328,1736309432750,-500.0,0.00010272,2]
[348096329,1736309432760,-500.0,0.00010272,2]
[348096330,1736309432769,-500.0,0.00010272,2]
[348096331,1736309432780,-500.0,0.00010272,2]
[348096332,1736309432789,-251.00257519,0.00010272,2]
[348096333,1736309432805,-248.99742481,0.00010272,2]
[348096334,1736309432816,-133.88395157,0.00010272,2]
[348096335,1736309432835,-591.65604843,0.00010272,2]
[348096336,1736309432846,-27.89454207,0.00010272,2]
[348096337,1736309432859,-472.10545793,0.00010272,2]
[348096338,1736309432869,-500.0,0.00010272,2]
[348096339,1736309432879,-500.0,0.00010272,2]
[348096340,1736309432888,-500.0,0.00010272,2]
[348096341,1736309432899,-1640.33,0.00010272,2]
[348096342,1736309432908,-500.0,0.00010272,2]
[348096343,1736309432916,-467.09044318,0.00010272,2]
[348096344,1736309432926,-500.0,0.00010272,2]
[348096345,1736309432935,-500.0,0.00010272,2]
[348096346,1736309432945,-693.03,0.00010272,2]
[348096347,1736309432955,-500.0,0.00010272,2]
[348096348,1736309432964,-500.0,0.00010272,2]
[348096349,1736309432973,-500.0,0.00010272,2]
[348096350,1736309432982,-500.0,0.00010272,2]
[348096351,1736309432992,-521.09,0.00010272,2]
[348096352,1736309433002,-500.0,0.00010272,2]
[348096353,1736309433012,-500.0,0.00010272,2]
[348096354,1736309433022,-500.0,0.00010272,2]
[348096355,1736309433032,-500.0,0.00010272,2]
[348096356,1736309433042,-717.57,0.00010272,2]
[348096357,1736309433051,-500.0,0.00010272,2]
[348096358,1736309433061,-500.0,0.00010272,2]
[348096359,1736309433070,-500.0,0.00010272,2]
[348096360,1736309433080,-500.0,0.00010272,2]
[348096361,1736309433089,-500.0,0.00010272,2]
[348096362,1736309433099,-960.21,0.00010272,2]
[348096363,1736309433109,-500.0,0.00010272,2]
[348096364,1736309433118,-500.0,0.00010272,2]
[348096365,1736309433128,-500.0,0.00010272,2]
[348096366,1736309433140,-500.0,0.00010272,2]
[348096367,1736309433149,-500.0,0.00010272,2]
[348096368,1736309433159,-500.0,0.00010272,2]
[348096369,1736309433169,-500.0,0.00010272,2]
[348096370,1736309433179,-500.0,0.00010272,2]
[348096371,1736309433189,-500.0,0.00010272,2]
[348096372,1736309433199,-1000.0,0.00010272,2]
[348096373,1736309433209,-468.44246896,0.00010272,2]
[348096374,1736309433220,-500.0,0.00010272,2]
[348096375,1736309433229,-500.0,0.00010272,2]
[348096376,1736309433239,-500.0,0.00010272,2]
[348096377,1736309433251,-500.0,0.00010272,2]
[348096378,1736309433261,-879.56,0.00010272,2]
[348096379,1736309433271,-710.41,0.00010272,2]
[348096380,1736309433281,-562.01,0.00010272,2]
[348096381,1736309433291,-516.47,0.00010272,2]
[348096382,1736309433301,-500.0,0.00010272,2]
[348096383,1736309433311,-829.73,0.00010272,2]
[348096384,1736309433320,-1122.13,0.00010272,2]
[348096385,1736309433330,-500.0,0.00010272,2]
[348096386,1736309433339,-501.91,0.00010272,2]
[348096387,1736309433349,-151.02,0.00010272,2]
[348096388,1736309433359,-501.19,0.00010272,2]
[348096389,1736309433368,-499.66,0.00010272,2]
[348096390,1736309433378,-151.36,0.00010272,2]
[348096391,1736309433387,-490.05,0.00010272,2]
[348096392,1736309433396,-491.42,0.00010272,2]
[348096393,1736309433405,-151.23,0.00010272,2]
[348096394,1736309433415,-1928.5,0.00010446,2]
[348096395,1736309433425,-1083.36,0.00010455,2]
[348096396,1736309433434,-504.5,0.00010545,2]
[348096397,1736309433444,-500.0,0.00010545,2]
[348096398,1736309433454,-932.69,0.00010545,2]
[348096399,1736309433463,-500.0,0.00010545,2]
[348096400,1736309433474,-500.0,0.00010546,2]
[348096401,1736309433485,-594.36,0.00010546,2]
[348096402,1736309433494,-464.2350473,0.00010546,2]
[348096403,1736309433504,-545.23,0.00010546,2]
[348096404,1736309433514,-500.0,0.00010546,2]
[348096405,1736309433523,-500.0,0.00010546,2]
[348096406,1736309433534,-793.5,0.00010546,2]
[348096407,1736309433543,-300.0,0.00010546,2]
[348096408,1736309433553,-500.0,0.00010546,2]
[348096409,1736309433563,-500.0,0.00010546,2]
[348096410,1736309433573,-500.0,0.00010546,2]
[348096411,1736309433582,-1099.72,0.00010546,2]
[348096412,1736309433592,-500.0,0.00010546,2]
[348096413,1736309433602,-950.71,0.00010546,2]
[348096414,1736309433613,-500.0,0.00010546,2]
[348096415,1736309433624,-500.0,0.00010546,2]
[348096416,1736309433634,-725.54,0.00010546,2]
[348096417,1736309433644,-500.0,0.00010546,2]
[348096418,1736309433654,-1640.33,0.00010546,2]
[348096419,1736309433663,-500.0,0.00010546,2]
[348096420,1736309433673,-500.0,0.00010546,2]
[348096421,1736309433683,-693.03,0.00010546,2]
[348096422,1736309433693,-500.0,0.00010546,2]
[348096423,1736309433703,-500.0,0.00010546,2]
[348096424,1736309433713,-500.0,0.00010546,2]
[348096425,1736309433722,-500.0,0.00010546,2]
[348096426,1736309433731,-717.57,0.00010546,2]
[348096427,1736309433741,-500.0,0.00010546,2]
[348096428,1736309433753,-960.21,0.00010546,2]
[348096429,1736309433763,-583.6145543,0.00010546,2]
[348096430,1736309433774,-500.0,0.00010546,2]
[348096431,1736309433783,-500.0,0.00010546,2]
[348096432,1736309433794,-500.0,0.00010546,2]
[348096433,1736309433807,-500.0,0.00010546,2]
[348096434,1736309433817,-500.0,0.00010546,2]
[348096435,1736309433828,-500.0,0.00010546,2]
[348096436,1736309433839,-500.0,0.00010546,2]
[348096437,1736309433848,-500.0,0.00010546,2]
[348096438,1736309433858,-500.0,0.00010546,2]
[348096439,1736309433868,-500.0,0.00010546,2]
[348096440,1736309433880,-500.0,0.00010546,2]
[348096441,1736309433890,-500.0,0.00010546,2]
[348096442,1736309433900,-879.56,0.00010546,2]
[348096443,1736309433910,-562.01,0.00010546,2]
[348096444,1736309433920,-516.47,0.00010546,2]
[348096445,1736309433930,-500.0,0.00010546,2]
[348096446,1736309433940,-829.73,0.00010546,2]
[348096447,1736309433951,-1122.13,0.00010546,2]
[348096448,1736309433960,-500.0,0.00010546,2]
[348096449,1736309433970,-151.66,0.00010664,2]
[348096450,1736309433981,-150.1,0.00010664,2]
[348096451,1736309433990,-152.15,0.00010664,2]
[348096452,1736309434002,-150.86,0.00010664,2]
[348096453,1736309434012,-152.39,0.00010672,2]
[348096454,1736309434022,-151.85,0.00010672,2]
[348096455,1736309434032,-151.65,0.00010672,2]
[348096456,1736309434042,-150.64,0.00010672,2]
[348096457,1736309434052,-151.57,0.00010672,2]
[348096458,1736309434061,-289.8087,0.00010719,2]
[348096459,1736309434070,-500.0,0.00010769,2]
[348096460,1736309434079,-152.56,0.00010772,2]
[348096461,1736309434089,-152.88,0.00010772,2]
[348096462,1736309434098,-152.66,0.00010772,2]
[348096463,1736309434109,-500.0,0.00010818,2]
[348096464,1736309434118,-500.0,0.00010818,2]
[348096465,1736309434128,-500.0,0.00010818,2]
[348096466,1736309434137,-500.0,0.00010818,2]
[348096467,1736309434149,-500.0,0.00010818,2]
[348096468,1736309434159,-922.36,0.00010818,2]
[348096469,1736309434169,-612.68,0.00010818,2]
[348096470,1736309434179,-1186.93,0.00010818,2]
[348096471,1736309434189,-666.86,0.00010818,2]
[348096472,1736309434199,-500.0,0.00010818,2]
[348096473,1736309434209,-500.0,0.00010818,2]
[348096474,1736309434219,-662.94,0.00010818,2]
[348096475,1736309434229,-500.0,0.00010818,2]
[348096476,1736309434238,-500.0,0.00010818,2]
[348096477,1736309434249,-335.789897,0.00010818,2]
[348096478,1736309434259,-500.0,0.00010818,2]
[348096479,1736309434269,-616.97,0.00010818,2]
[348096480,1736309434279,-843.94,0.00010818,2]
[348096481,1736309434289,-306.713118,0.00010818,2]
[348096482,1736309434299,-500.0,0.00010818,2]
[348096483,1736309434309,-500.0,0.00010818,2]
[348096484,1736309434319,-1266.87,0.00010818,2]
[348096485,1736309434330,-500.0,0.00010818,2]
[348096486,1736309434340,-500.0,0.00010818,2]
[348096487,1736309434349,-2135.34,0.00010818,2]
[348096488,1736309434359,-719.93,0.00010818,2]
[348096489,1736309434369,-500.0,0.00010818,2]
[348096490,1736309434378,-500.0,0.00010818,2]
[348096491,1736309434387,-1427.04,0.00010818,2]
[348096492,1736309434397,-500.0,0.00010818,2]
[348096493,1736309434406,-500.0,0.00010818,2]
[348096494,1736309434416,-1495.82,0.00010818,2]
[348096495,1736309434425,-500.0,0.00010818,2]
[348096496,1736309434435,-500.0,0.00010818,2]
[348096497,1736309434444,-500.0,0.00010818,2]
[348096498,1736309434453,-729.56,0.00010818,2]
[348096499,1736309434462,-500.0,0.00010818,2]
[348096500,1736309434474,-1952.47,0.00010818,2]
[348096501,1736309434485,-500.0,0.00010819,2]
[348096502,1736309434495,-500.0,0.00010819,2]
[348096503,1736309434504,-500.0,0.00010819,2]
[348096504,1736309434513,-500.0,0.00010819,2]
[348096505,1736309434522,-500.0,0.00010819,2]
[348096506,1736309434532,-500.0,0.00010819,2]
[348096507,1736309434543,-500.0,0.00010819,2]
[348096508,1736309434552,-187.49,0.00010819,2]
[348096509,1736309434561,-500.0,0.00010819,2]
[348096510,1736309434571,-500.0,0.00010819,2]
[348096511,1736309434580,-500.0,0.00010819,2]
[348096512,1736309434589,-285.89913309,0.00010819,2]
[348096513,1736309434599,-561.63,0.00010819,2]
[348096514,1736309434608,-500.0,0.00010819,2]
[348096515,1736309434617,-500.0,0.00010819,2]
[348096516,1736309434626,-500.0,0.00010819,2]
[348096517,1736309434635,-500.0,0.00010819,2]
[348096518,1736309434644,-649.74,0.00010819,2]
[348096519,1736309434653,-500.0,0.00010819,2]
[348096520,1736309434663,-500.0,0.00010819,2]
[348096521,1736309434673,-500.0,0.00010819,2]
[348096522,1736309434682,-500.0,0.00010819,2]
[348096523,1736309434691,-500.0,0.00010819,2]
[348096524,1736309434700,-557.02,0.00010819,2]
[348096525,1736309434709,-296.7032466,0.00010819,2]
[348096526,1736309434718,-500.0,0.00010819,2]
[348096527,1736309434727,-500.0,0.00010819,2]
[348096528,1736309434736,-500.0,0.00010819,2]
[348096529,1736309434746,-500.0,0.00010819,2]
[348096530,1736309434755,-500.0,0.00010819,2]
[348096531,1736309434764,-500.0,0.00010819,2]
[348096532,1736309434773,-500.0,0.00010819,2]
[348096533,1736309434782,-500.0,0.00010819,2]
[348096534,1736309434791,-500.0,0.00010819,2]
[348096535,1736309434803,-507.73547527,0.00010819,2]
[348096536,1736309434812,-500.0,0.00010819,2]
[348096537,1736309434822,-500.0,0.00010819,2]
[348096538,1736309434831,-500.0,0.00010819,2]
[348096539,1736309434841,-500.0,0.00010819,2]
[348096540,1736309434850,-500.0,0.00010819,2]
[348096541,1736309434859,-500.0,0.00010819,2]
[348096542,1736309434868,-500.0,0.00010819,2]
[348096543,1736309434878,-500.0,0.00010819,2]
[348096544,1736309434887,-500.0,0.00010819,2]
[348096545,1736309434896,-500.0,0.00010819,2]
[348096546,1736309434905,-500.0,0.00010819,2]
[348096547,1736309434915,-500.0,0.00010819,2]
[348096548,1736309434924,-500.0,0.00010819,2]
[348096549,1736309434933,-500.0,0.00010819,2]
[348096550,1736309434942,-500.0,0.00010819,2]
[348096551,1736309434951,-500.0,0.00010819,2]
[348096552,1736309434960,-500.0,0.00010819,2]
[348096553,1736309434969,-500.0,0.00010819,2]
[348096554,1736309434978,-500.0,0.00010819,2]
[348096555,1736309434987,-500.0,0.00010819,2]
[348096556,1736309434996,-500.0,0.00010819,2]
[348096557,1736309435005,-500.0,0.00010819,2]
[348096558,1736309435014,-500.0,0.00010819,2]
[348096559,1736309435023,-500.0,0.00010819,2]
[348096560,1736309435032,-500.0,0.00010819,2]
[348096561,1736309435041,-500.0,0.00010819,2]
[348096562,1736309435051,-501.02306606,0.00010819,2]
[348096563,1736309435060,-500.0,0.00010819,2]
[348096564,1736309435069,-500.0,0.00010819,2]
[348096565,1736309435078,-500.0,0.00010819,2]
[348096566,1736309435087,-500.0,0.00010819,2]
[348096567,1736309435096,-500.83564303,0.00010819,2]
[348096568,1736309435105,-500.0,0.00010819,2]
[348096569,1736309435114,-500.0,0.00010819,2]
[348096570,1736309435123,-500.0,0.00010819,2]
[348096571,1736309435132,-500.0,0.00010819,2]
[348096572,1736309435142,-500.0,0.00010819,2]
[348096573,1736309435151,-500.0,0.00010819,2]
[348096574,1736309435161,-500.0,0.00010819,2]
[348096575,1736309435170,-500.0,0.00010819,2]
[348096576,1736309435180,-500.0,0.00010819,2]
[348096577,1736309435189,-500.0,0.00010819,2]
[348096578,1736309435199,-500.0,0.00010819,2]
[348096579,1736309435208,-505.27925976,0.00010819,2]
[348096580,1736309435217,-500.0,0.00010819,2]
[348096581,1736309435227,-487.37969964,0.00010819,2]
[348096582,1736309435236,-504.5,0.00010819,2]
[348096583,1736309435245,-500.0,0.00010819,2]
[348096584,1736309435255,-500.0,0.00010819,2]
[348096585,1736309435264,-500.0,0.00010819,2]
[348096586,1736309435273,-2074.85,0.00010819,2]
[348096587,1736309435283,-500.0,0.00010819,2]
[348096588,1736309435292,-500.0,0.00010819,2]
[348096589,1736309435301,-500.0,0.00010819,2]
[348096590,1736309435310,-500.0,0.00010819,2]
[348096591,1736309435319,-500.0,0.00010819,2]
[348096592,1736309435328,-500.0,0.00010819,2]
[348096593,1736309435338,-500.0,0.00010819,2]
[348096594,1736309435347,-500.0,0.00010819,2]
[348096595,1736309435356,-500.0,0.00010819,2]
[348096596,1736309435365,-500.0,0.00010819,2]
[348096597,1736309435374,-500.0,0.00010819,2]
[348096598,1736309435384,-500.0,0.00010819,2]
[348096599,1736309435393,-500.0,0.00010819,2]
[348096600,1736309435402,-500.0,0.00010819,2]
[348096601,1736309435411,-500.0,0.00010819,2]
[348096602,1736309435421,-500.0,0.00010819,2]
[348096603,1736309435430,-500.0,0.00010819,2]
[348096604,1736309435439,-500.0,0.00010819,2]
[348096605,1736309435448,-500.0,0.00010819,2]
[348096606,1736309435457,-500.0,0.00010819,2]
[348096607,1736309435467,-932.69,0.00010819,2]
[348096608,1736309435476,-500.0,0.00010819,2]
[348096609,1736309435486,-500.0,0.00010819,2]
[348096610,1736309435496,-500.0,0.00010819,2]
[348096611,1736309435507,-500.0,0.00010819,2]
[348096612,1736309435517,-534.47,0.00010819,2]
[348096613,1736309435526,-500.0,0.00010819,2]
[348096614,1736309435715,-500.0,0.00010819,2]
[348096615,1736309435725,-501.65299156,0.00010819,2]
[348096616,1736309435737,-500.0,0.00010819,2]
[348096617,1736309435748,-500.0,0.00010819,2]
[348096618,1736309435757,-500.0,0.00010819,2]
[348096619,1736309435766,-500.0,0.00010819,2]
[348096620,1736309435776,-500.0,0.00010819,2]
[348096621,1736309435785,-500.0,0.00010819,2]
[348096622,1736309435796,-500.0,0.00010819,2]
[348096623,1736309435808,-500.0,0.00010819,2]
[348096624,1736309435818,-506.40126347,0.00010819,2]
[348096625,1736309435827,-501.19818335,0.00010819,2]
[348096626,1736309435837,-500.0,0.00010819,2]
[348096627,1736309435847,-500.0,0.00010819,2]
[348096628,1736309435856,-500.65795346,0.00010819,2]
[348096629,1736309435866,-403.50815141,0.00010819,2]
[348096630,1736309435876,-500.0,0.00010819,2]
[348096631,1736309435886,-500.0,0.00010819,2]
[348096632,1736309435895,-500.0,0.00010819,2]
[348096633,1736309435904,-500.0,0.00010819,2]
[348096634,1736309435914,-500.0,0.00010819,2]
[348096635,1736309435923,-500.0,0.00010819,2]
[348096636,1736309435933,-500.0,0.00010819,2]
[348096637,1736309435942,-500.0,0.00010819,2]
[348096638,1736309435952,-500.0,0.00010819,2]
[348096639,1736309435961,-500.0,0.00010819,2]
[348096640,1736309435971,-546.53,0.00010819,2]
[348096641,1736309435981,-500.0,0.00010819,2]
[348096642,1736309435991,-500.0,0.00010819,2]
[348096643,1736309436001,-500.0,0.00010819,2]
[348096644,1736309436010,-500.0,0.00010819,2]
[348096645,1736309436021,-500.0,0.00010819,2]
[348096646,1736309436030,-216.23,0.00010819,2]
[348096647,1736309436040,-500.0,0.00010819,2]
[348096648,1736309436050,-500.0,0.00010819,2]
[348096649,1736309436059,-500.0,0.00010819,2]
[348096650,1736309436068,-500.0,0.00010819,2]
[348096651,1736309436077,-500.0,0.00010819,2]
[348096652,1736309436086,-500.0,0.00010819,2]
[348096653,1736309436095,-500.0,0.00010819,2]
[348096654,1736309436105,-500.0,0.00010819,2]
[348096655,1736309436114,-500.0,0.00010819,2]
[348096656,1736309436123,-500.0,0.00010819,2]
[348096657,1736309436133,-500.0,0.00010819,2]
[348096658,1736309436142,-500.0,0.00010819,2]
[348096659,1736309436151,-500.0,0.00010819,2]
[348096660,1736309436161,-500.0,0.00010819,2]
[348096661,1736309436170,-500.0,0.00010819,2]
[348096662,1736309436180,-500.0,0.00010819,2]
[348096663,1736309436189,-500.0,0.00010819,2]
[348096664,1736309436198,-500.0,0.00010819,2]
[348096665,1736309436208,-500.0,0.00010819,2]
[348096666,1736309436217,-500.0,0.00010819,2]
[348096667,1736309436227,-500.0,0.00010819,2]
[348096668,1736309436237,-500.0,0.00010819,2]
[348096669,1736309436248,-500.0,0.00010819,2]
[348096670,1736309436257,-569.31,0.00010819,2]
[348096671,1736309436267,-603.58,0.00010819,2]
[348096672,1736309436278,-500.0,0.00010819,2]
[348096673,1736309436289,-500.0,0.00010819,2]
[348096674,1736309436300,-500.0,0.00010819,2]
[348096675,1736309436310,-500.0,0.00010819,2]
[348096676,1736309436321,-500.0,0.00010819,2]
[348096677,1736309436331,-500.0,0.00010819,2]
[348096678,1736309436342,-500.0,0.00010819,2]
[348096679,1736309436353,-500.0,0.00010819,2]
[348096680,1736309436363,-500.0,0.00010819,2]
[348096681,1736309436374,-500.0,0.00010819,2]
[348096682,1736309436385,-235.40787081,0.00010819,2]
[348096683,1736309436395,-500.0,0.00010819,2]
[348096684,1736309436405,-500.0,0.00010819,2]
[348096685,1736309436415,-500.0,0.00010819,2]
[348096686,1736309436424,-500.0,0.00010819,2]
[348096687,1736309436434,-500.0,0.0001082,2]
[348096688,1736309436444,-594.36,0.0001082,2]
[348096689,1736309436453,-545.23,0.0001082,2]
[348096690,1736309436463,-500.0,0.0001082,2]
[348096691,1736309436475,-500.0,0.0001082,2]
[348096692,1736309436485,-793.5,0.0001082,2]
[348096693,1736309436495,-500.0,0.0001082,2]
[348096694,1736309436509,-500.0,0.0001082,2]
[348096695,1736309436519,-500.0,0.0001082,2]
[348096696,1736309436534,-1099.72,0.0001082,2]
[348096697,1736309436543,-500.0,0.0001082,2]
[348096698,1736309436553,-950.71,0.0001082,2]
[348096699,1736309436563,-204.74886152,0.0001082,2]
[348096700,1736309436573,-725.54,0.0001082,2]
[348096701,1736309436583,-500.0,0.0001082,2]
[348096702,1736309436593,-1640.33,0.0001082,2]
[348096703,1736309436602,-500.0,0.0001082,2]
[348096704,1736309436612,-500.0,0.0001082,2]
[348096705,1736309436622,-693.03,0.0001082,2]
[348096706,1736309436631,-500.0,0.0001082,2]
[348096707,1736309436640,-500.0,0.0001082,2]
[348096708,1736309436649,-500.0,0.0001082,2]
[348096709,1736309436658,-500.0,0.0001082,2]
[348096710,1736309436667,-717.57,0.0001082,2]
[348096711,1736309436677,-960.21,0.0001082,2]
[348096712,1736309436686,-500.0,0.0001082,2]
[348096713,1736309436695,-500.0,0.0001082,2]
[348096714,1736309436705,-500.0,0.0001082,2]
[348096715,1736309436715,-500.0,0.0001082,2]
[348096716,1736309436724,-500.0,0.0001082,2]
[348096717,1736309436733,-500.0,0.0001082,2]
[348096718,1736309436743,-500.0,0.0001082,2]
[348096719,1736309436759,-500.0,0.0001082,2]
[348096720,1736309436769,-500.0,0.0001082,2]
[348096721,1736309436778,-500.0,0.0001082,2]
[348096722,1736309436787,-500.0,0.0001082,2]
[348096723,1736309436801,-879.56,0.0001082,2]
[348096724,1736309436811,-562.01,0.0001082,2]
[348096725,1736309436820,-516.47,0.0001082,2]
[348096726,1736309436830,-500.0,0.0001082,2]